[Event "Titled Tuesday Blitz August 24 2021"]
[White "Papasimakopoulos, Alexandros"]
[Black "Sarana, Alexey"]
[WhiteFideId "4244125"]
[BlackFideId "24133795"]
[WhiteElo "2352"]
[BlackElo "2646"]
[Result "0-1"]
[Round "08"]
[TimeControl "180+1"]
[Date "2021.08.24"]
[WhiteClock "0:00:06"]
[BlackClock "0:00:56"]

1. d4 {[%clk 0:03:00]}  Nf6 {[%clk 0:02:58]} 2. c4 {[%clk 0:03:01]}  e6 {[%clk 0:02:58]} 3. Nc3 {[%clk 0:03:01]}  d5 {[%clk 0:02:58]} 4. cxd5 {[%clk 0:03:01]}  exd5 {[%clk 0:02:59]} 5. Bg5 {[%clk 0:03:02]}  c6 {[%clk 0:02:57]} 6. e3 {[%clk 0:03:02]}  Be7 {[%clk 0:02:55]} 7. Bd3 {[%clk 0:03:03]}  O-O {[%clk 0:02:56]} 8. Qc2 {[%clk 0:03:03]}  Nbd7 {[%clk 0:02:55]} 9. Nf3 {[%clk 0:03:04]}  Re8 {[%clk 0:02:54]} 10. O-O {[%clk 0:03:04]}  Nf8 {[%clk 0:02:55]} 11. h3 {[%clk 0:03:02]}  Ng6 {[%clk 0:02:55]} 12. Bxf6 {[%clk 0:03:02]}  Bxf6 {[%clk 0:02:55]} 13. b4 {[%clk 0:03:03]}  a6 {[%clk 0:02:55]} 14. Na4 {[%clk 0:02:59]}  Rb8 {[%clk 0:02:54]} 15. Nc5 {[%clk 0:02:56]}  Qd6 {[%clk 0:02:54]} 16. Rab1 {[%clk 0:02:50]}  Nf8 {[%clk 0:02:52]} 17. a4 {[%clk 0:02:50]}  g6 {[%clk 0:02:53]} 18. b5 {[%clk 0:02:46]}  axb5 {[%clk 0:02:45]} 19. axb5 {[%clk 0:02:46]}  b6 {[%clk 0:02:46]} 20. Na6 {[%clk 0:02:42]}  Bxa6 {[%clk 0:02:46]} 21. bxa6 {[%clk 0:02:42]}  b5 {[%clk 0:02:47]} 22. Rfc1 {[%clk 0:02:37]}  Rb6 {[%clk 0:02:47]} 23. e4 {[%clk 0:02:38]}  Bg7 {[%clk 0:02:22]} 24. Qc5 {[%clk 0:02:24]}  Qxc5 {[%clk 0:02:10]} 25. dxc5 {[%clk 0:02:25]}  Rxa6 {[%clk 0:02:10]} 26. exd5 {[%clk 0:02:25]}  Rd8 {[%clk 0:02:11]} 27. d6 {[%clk 0:01:59]}  Ne6 {[%clk 0:02:03]} 28. Bxb5 {[%clk 0:01:40]}  cxb5 {[%clk 0:02:02]} 29. Rxb5 {[%clk 0:01:41]}  Rc6 {[%clk 0:02:03]} 30. Rb6 {[%clk 0:01:36]}  Rdxd6 {[%clk 0:01:53]} 31. cxd6 {[%clk 0:01:30]}  Rxc1+ {[%clk 0:01:49]} 32. Kh2 {[%clk 0:01:30]}  Bf6 {[%clk 0:01:50]} 33. Nd2 {[%clk 0:01:27]}  Rd1 {[%clk 0:01:47]} 34. Ne4 {[%clk 0:01:26]}  Be5+ {[%clk 0:01:45]} 35. g3 {[%clk 0:01:27]}  Rd4 {[%clk 0:01:32]} 36. f3 {[%clk 0:01:17]}  h5 {[%clk 0:01:30]} 37. Kg2 {[%clk 0:01:14]}  h4 {[%clk 0:01:30]} 38. gxh4 {[%clk 0:01:14]}  Nf4+ {[%clk 0:01:29]} 39. Kf2 {[%clk 0:01:13]}  Kg7 {[%clk 0:01:26]} 40. Rb7 {[%clk 0:01:10]}  Nxh3+ {[%clk 0:01:21]} 41. Ke3 {[%clk 0:01:09]}  Rd5 {[%clk 0:01:21]} 42. d7 {[%clk 0:01:01]}  Bd4+ {[%clk 0:01:17]} 43. Kd3 {[%clk 0:00:57]}  Nf4+ {[%clk 0:01:16]} 44. Kc4 {[%clk 0:00:57]}  Bf6 {[%clk 0:01:16]} 45. Rb6 {[%clk 0:00:46]}  Rd4+ {[%clk 0:01:09]} 46. Kb3 {[%clk 0:00:43]}  Bxh4 {[%clk 0:01:05]} 47. Rd6 {[%clk 0:00:35]}  Rxd6 {[%clk 0:01:03]} 48. Nxd6 {[%clk 0:00:36]}  Ne6 {[%clk 0:01:03]} 49. Kc4 {[%clk 0:00:36]}  Kf8 {[%clk 0:01:03]} 50. Nc8 {[%clk 0:00:35]}  Bg3 {[%clk 0:01:01]} 51. Kd5 {[%clk 0:00:35]}  Bc7 {[%clk 0:01:01]} 52. Kc6 {[%clk 0:00:31]}  Bd8 {[%clk 0:01:01]} 53. Kd5 {[%clk 0:00:29]}  Ng5 {[%clk 0:01:00]} 54. f4 {[%clk 0:00:29]}  Ne6 {[%clk 0:01:01]} 55. Ke5 {[%clk 0:00:24]}  Bc7+ {[%clk 0:01:00]} 56. Ke4 {[%clk 0:00:24]}  Nc5+ {[%clk 0:00:56]} 57. Kd5 {[%clk 0:00:19]}  Nxd7 {[%clk 0:00:56]} 58. Kc6 {[%clk 0:00:19]}  Nb6 {[%clk 0:00:56]} 59. Na7 {[%clk 0:00:05]}  Bxf4 {[%clk 0:00:56]} 60. Kxb6 {[%clk 0:00:06]}  Be3+ {[%clk 0:00:56]} 0-1


[Site "https://www.chess.com"]

[Event "Titled Tuesday Blitz August 24 2021"]
[White "Pavlov, Danila"]
[Black "Terry, Renato"]
[WhiteFideId "34126594"]
[BlackFideId "3803457"]
[WhiteElo "2323"]
[BlackElo "2581"]
[Result "0-1"]
[Round "08"]
[TimeControl "180+1"]
[Date "2021.08.24"]
[WhiteClock "0:00:02"]
[BlackClock "0:00:47"]

1. e4 {[%clk 0:03:00]}  e6 {[%clk 0:02:57]} 2. d4 {[%clk 0:03:00]}  d5 {[%clk 0:02:57]} 3. Nc3 {[%clk 0:03:00]}  Nf6 {[%clk 0:02:57]} 4. Bg5 {[%clk 0:02:59]}  Bb4 {[%clk 0:02:57]} 5. e5 {[%clk 0:02:59]}  h6 {[%clk 0:02:57]} 6. Be3 {[%clk 0:02:56]}  Ne4 {[%clk 0:02:56]} 7. Qg4 {[%clk 0:02:57]}  Kf8 {[%clk 0:02:56]} 8. Bd3 {[%clk 0:02:54]}  Nxc3 {[%clk 0:02:54]} 9. a3 {[%clk 0:02:54]}  Na2+ {[%clk 0:02:54]} 10. Kf1 {[%clk 0:02:43]}  Be7 {[%clk 0:02:53]} 11. Rxa2 {[%clk 0:02:40]}  c5 {[%clk 0:02:53]} 12. c3 {[%clk 0:02:40]}  Qb6 {[%clk 0:02:42]} 13. b4 {[%clk 0:02:09]}  cxb4 {[%clk 0:02:37]} 14. cxb4 {[%clk 0:02:09]}  Bd7 {[%clk 0:02:37]} 15. Qe2 {[%clk 0:02:06]}  a6 {[%clk 0:02:28]} 16. Nf3 {[%clk 0:02:00]}  Bb5 {[%clk 0:02:28]} 17. Nd2 {[%clk 0:02:00]}  Nd7 {[%clk 0:02:22]} 18. Nb3 {[%clk 0:01:51]}  Bxd3 {[%clk 0:02:17]} 19. Qxd3 {[%clk 0:01:50]}  Qb5 {[%clk 0:02:16]} 20. Ke2 {[%clk 0:01:49]}  Nb6 {[%clk 0:02:13]} 21. Rc1 {[%clk 0:01:14]}  Qxd3+ {[%clk 0:02:09]} 22. Kxd3 {[%clk 0:01:12]}  Nc4 {[%clk 0:02:10]} 23. Nd2 {[%clk 0:01:07]}  b5 {[%clk 0:02:07]} 24. a4 {[%clk 0:01:07]}  Rb8 {[%clk 0:02:05]} 25. axb5 {[%clk 0:00:58]}  axb5 {[%clk 0:02:05]} 26. Rb1 {[%clk 0:00:53]}  f5 {[%clk 0:01:59]} 27. exf6 {[%clk 0:00:51]}  gxf6 {[%clk 0:02:00]} 28. Bf4 {[%clk 0:00:38]}  e5 {[%clk 0:01:52]} 29. dxe5 {[%clk 0:00:28]}  fxe5 {[%clk 0:01:53]} 30. Bg3 {[%clk 0:00:26]}  Kf7 {[%clk 0:01:50]} 31. Ra7 {[%clk 0:00:19]}  Ra8 {[%clk 0:01:29]} 32. Rba1 {[%clk 0:00:19]}  Rxa7 {[%clk 0:01:30]} 33. Rxa7 {[%clk 0:00:20]}  Ke6 {[%clk 0:01:30]} 34. Ra6+ {[%clk 0:00:17]}  Kf5 {[%clk 0:01:30]} 35. Nb3 {[%clk 0:00:06]}  Bxb4 {[%clk 0:01:29]} 36. h3 {[%clk 0:00:07]}  Rc8 {[%clk 0:01:25]} 37. Rxh6 {[%clk 0:00:06]}  Nb2+ {[%clk 0:01:25]} 38. Ke2 {[%clk 0:00:06]}  Rc2+ {[%clk 0:01:26]} 39. Kf1 {[%clk 0:00:06]}  Nc4 {[%clk 0:00:54]} 40. Rc6 {[%clk 0:00:02]}  Ne3+ {[%clk 0:00:47]} 41. fxe3 {[%clk 0:00:02]}  Rxc6 {[%clk 0:00:48]} 42. Ke2 {[%clk 0:00:02]}  Rc2+ {[%clk 0:00:47]} 43. Kf3 {[%clk 0:00:02]}  e4# {[%clk 0:00:47]} 0-1


[Site "https://www.chess.com"]

[Event "Titled Tuesday Blitz August 24 2021"]
[White "Sadhwani, Raunak"]
[Black "Timofeev, Artyom"]
[WhiteFideId "35093487"]
[BlackFideId "4140419"]
[WhiteElo "2514"]
[BlackElo "2582"]
[Result "1-0"]
[Round "08"]
[TimeControl "180+1"]
[Date "2021.08.24"]
[WhiteClock "0:00:11"]
[BlackClock "0:00:09"]

1. b3 {[%clk 0:03:00]}  c5 {[%clk 0:02:59]} 2. Bb2 {[%clk 0:03:01]}  d6 {[%clk 0:02:59]} 3. e4 {[%clk 0:03:01]}  Nc6 {[%clk 0:02:58]} 4. Bb5 {[%clk 0:03:01]}  Bd7 {[%clk 0:02:58]} 5. f4 {[%clk 0:02:59]}  e6 {[%clk 0:02:55]} 6. Nf3 {[%clk 0:02:59]}  Nf6 {[%clk 0:02:55]} 7. Qe2 {[%clk 0:02:59]}  Be7 {[%clk 0:02:55]} 8. Bxc6 {[%clk 0:02:49]}  Bxc6 {[%clk 0:02:54]} 9. Nc3 {[%clk 0:02:48]}  d5 {[%clk 0:02:48]} 10. exd5 {[%clk 0:02:46]}  exd5 {[%clk 0:02:47]} 11. Ne5 {[%clk 0:02:45]}  O-O {[%clk 0:02:43]} 12. O-O-O {[%clk 0:02:42]}  Re8 {[%clk 0:02:39]} 13. Nxc6 {[%clk 0:02:40]}  bxc6 {[%clk 0:02:39]} 14. Qf3 {[%clk 0:02:37]}  c4 {[%clk 0:02:39]} 15. Rhe1 {[%clk 0:02:31]}  cxb3 {[%clk 0:02:32]} 16. cxb3 {[%clk 0:02:32]}  Nd7 {[%clk 0:02:26]} 17. Na4 {[%clk 0:02:29]}  Nb6 {[%clk 0:02:24]} 18. Nxb6 {[%clk 0:02:29]}  axb6 {[%clk 0:02:24]} 19. Kb1 {[%clk 0:02:29]}  Bf8 {[%clk 0:02:24]} 20. g4 {[%clk 0:02:19]}  Qd7 {[%clk 0:02:22]} 21. f5 {[%clk 0:02:19]}  Qa7 {[%clk 0:02:22]} 22. Rxe8 {[%clk 0:02:16]}  Rxe8 {[%clk 0:02:21]} 23. Qc3 {[%clk 0:02:13]}  c5 {[%clk 0:02:19]} 24. Qd3 {[%clk 0:02:11]}  d4 {[%clk 0:02:08]} 25. a4 {[%clk 0:02:09]}  Qc7 {[%clk 0:02:06]} 26. h3 {[%clk 0:02:09]}  Qc6 {[%clk 0:02:03]} 27. Kc2 {[%clk 0:02:06]}  h6 {[%clk 0:02:01]} 28. Qb5 {[%clk 0:02:00]}  Qe4+ {[%clk 0:01:59]} 29. d3 {[%clk 0:01:59]}  Qa8 {[%clk 0:01:54]} 30. Qxb6 {[%clk 0:01:52]}  Qg2+ {[%clk 0:01:48]} 31. Rd2 {[%clk 0:01:51]}  Qxh3 {[%clk 0:01:49]} 32. Qc6 {[%clk 0:01:42]}  Rb8 {[%clk 0:01:36]} 33. Qc7 {[%clk 0:01:38]}  Re8 {[%clk 0:01:35]} 34. a5 {[%clk 0:01:31]}  Qxg4 {[%clk 0:01:34]} 35. Qc6 {[%clk 0:01:31]}  Rd8 {[%clk 0:01:17]} 36. Rf2 {[%clk 0:01:00]}  Qg3 {[%clk 0:01:15]} 37. Re2 {[%clk 0:00:58]}  Qd6 {[%clk 0:01:14]} 38. Qb7 {[%clk 0:00:50]}  Qb8 {[%clk 0:01:05]} 39. Qc6 {[%clk 0:00:20]}  Qa8 {[%clk 0:01:04]} 40. Qb6 {[%clk 0:00:18]}  Rb8 {[%clk 0:01:04]} 41. Qc7 {[%clk 0:00:19]}  Rc8 {[%clk 0:00:58]} 42. Qd7 {[%clk 0:00:19]}  Rd8 {[%clk 0:00:45]} 43. Qa4 {[%clk 0:00:20]}  Qf3 {[%clk 0:00:27]} 44. Re8 {[%clk 0:00:19]}  Rxe8 {[%clk 0:00:20]} 45. Qxe8 {[%clk 0:00:20]}  Qb7 {[%clk 0:00:20]} 46. Bc1 {[%clk 0:00:15]}  h5 {[%clk 0:00:19]} 47. Bg5 {[%clk 0:00:12]}  Qg2+ {[%clk 0:00:17]} 48. Bd2 {[%clk 0:00:13]}  h4 {[%clk 0:00:17]} 49. a6 {[%clk 0:00:11]}  c4 {[%clk 0:00:13]} 50. bxc4 {[%clk 0:00:11]}  h3 {[%clk 0:00:08]} 51. a7 {[%clk 0:00:11]}  h2 {[%clk 0:00:09]} 52. a8=Q {[%clk 0:00:11]} 1-0


[Site "https://www.chess.com"]

[Event "Titled Tuesday Blitz August 24 2021"]
[White "Sadovsky, Artem"]
[Black "Temirkanov, David"]
[WhiteFideId "4155840"]
[BlackFideId "4168534"]
[WhiteElo "2442"]
[BlackElo "2125"]
[Result "0-1"]
[Round "08"]
[TimeControl "180+1"]
[Date "2021.08.24"]
[WhiteClock "0:00:01"]
[BlackClock "0:00:19"]

1. Nf3 {[%clk 0:02:47]}  d5 {[%clk 0:02:54]} 2. e3 {[%clk 0:02:42]}  Nf6 {[%clk 0:02:52]} 3. c4 {[%clk 0:02:40]}  c6 {[%clk 0:02:47]} 4. b3 {[%clk 0:02:40]}  Bf5 {[%clk 0:02:36]} 5. Bb2 {[%clk 0:02:40]}  e6 {[%clk 0:02:36]} 6. Be2 {[%clk 0:02:40]}  Nbd7 {[%clk 0:02:36]} 7. O-O {[%clk 0:02:40]}  Be7 {[%clk 0:02:34]} 8. d3 {[%clk 0:02:40]}  h6 {[%clk 0:02:33]} 9. Nbd2 {[%clk 0:02:41]}  O-O {[%clk 0:02:33]} 10. Qc2 {[%clk 0:02:40]}  a5 {[%clk 0:02:32]} 11. a3 {[%clk 0:02:38]}  Bh7 {[%clk 0:02:30]} 12. Rad1 {[%clk 0:02:30]}  Qb6 {[%clk 0:02:29]} 13. Qc1 {[%clk 0:02:27]}  Nc5 {[%clk 0:02:18]} 14. Bd4 {[%clk 0:02:25]}  Qd8 {[%clk 0:02:11]} 15. Ne5 {[%clk 0:02:20]}  Nfd7 {[%clk 0:02:04]} 16. Nxd7 {[%clk 0:01:52]}  Nxd7 {[%clk 0:02:03]} 17. Nf3 {[%clk 0:01:46]}  Bf6 {[%clk 0:02:00]} 18. Qb2 {[%clk 0:01:37]}  c5 {[%clk 0:01:36]} 19. Bxf6 {[%clk 0:01:32]}  Nxf6 {[%clk 0:01:30]} 20. Ne5 {[%clk 0:01:24]}  Qe7 {[%clk 0:01:26]} 21. Bf3 {[%clk 0:01:21]}  Rfd8 {[%clk 0:01:25]} 22. Rc1 {[%clk 0:01:12]}  Rac8 {[%clk 0:01:22]} 23. Rfd1 {[%clk 0:01:12]}  b6 {[%clk 0:01:13]} 24. h3 {[%clk 0:01:08]}  Rc7 {[%clk 0:01:03]} 25. b4 {[%clk 0:00:36]}  axb4 {[%clk 0:00:59]} 26. axb4 {[%clk 0:00:37]}  Rdc8 {[%clk 0:00:47]} 27. b5 {[%clk 0:00:28]}  Qd6 {[%clk 0:00:29]} 28. Ra1 {[%clk 0:00:22]}  Nd7 {[%clk 0:00:28]} 29. Nc6 {[%clk 0:00:16]}  Nb8 {[%clk 0:00:27]} 30. Nxb8 {[%clk 0:00:07]}  Rxb8 {[%clk 0:00:28]} 31. d4 {[%clk 0:00:02]}  dxc4 {[%clk 0:00:25]} 32. d5 {[%clk 0:00:01]}  e5 {[%clk 0:00:24]} 33. Qc3 {[%clk 0:00:01]}  Bd3 {[%clk 0:00:24]} 34. e4 {[%clk 0:00:01]}  f5 {[%clk 0:00:20]} 35. Re1 {[%clk 0:00:01]}  f4 {[%clk 0:00:19]} 0-1


[Site "https://www.chess.com"]

[Event "Titled Tuesday Blitz August 24 2021"]
[White "Sanchez Alvares, Kelvin Antonio"]
[Black "Yoo, Christopher Woojin"]
[WhiteFideId "3906680"]
[BlackFideId "30909694"]
[WhiteElo "2247"]
[BlackElo "2105"]
[Result "1-0"]
[Round "08"]
[TimeControl "180+1"]
[Date "2021.08.24"]
[WhiteClock "0:00:28"]
[BlackClock "0:00:01"]

1. d4 {[%clk 0:02:58]}  Nf6 {[%clk 0:02:59]} 2. c4 {[%clk 0:02:57]}  e6 {[%clk 0:02:59]} 3. Nf3 {[%clk 0:02:57]}  d5 {[%clk 0:02:58]} 4. Nc3 {[%clk 0:02:56]}  c6 {[%clk 0:02:58]} 5. Bg5 {[%clk 0:02:55]}  h6 {[%clk 0:02:58]} 6. Bxf6 {[%clk 0:02:55]}  Qxf6 {[%clk 0:02:58]} 7. e3 {[%clk 0:02:55]}  Nd7 {[%clk 0:02:58]} 8. Qc2 {[%clk 0:02:49]}  g6 {[%clk 0:02:55]} 9. O-O-O {[%clk 0:02:49]}  Bg7 {[%clk 0:02:52]} 10. Kb1 {[%clk 0:02:49]}  O-O {[%clk 0:02:51]} 11. h4 {[%clk 0:02:49]}  dxc4 {[%clk 0:02:45]} 12. Bxc4 {[%clk 0:02:47]}  b5 {[%clk 0:02:44]} 13. Bd3 {[%clk 0:02:47]}  Bb7 {[%clk 0:02:45]} 14. Ne4 {[%clk 0:02:47]}  Qe7 {[%clk 0:02:44]} 15. Rc1 {[%clk 0:02:47]}  Rfc8 {[%clk 0:02:33]} 16. h5 {[%clk 0:02:45]}  g5 {[%clk 0:02:33]} 17. Nc5 {[%clk 0:02:45]}  Nxc5 {[%clk 0:02:28]} 18. Qxc5 {[%clk 0:02:44]}  Qxc5 {[%clk 0:02:24]} 19. Rxc5 {[%clk 0:02:43]}  Bf8 {[%clk 0:02:24]} 20. Rcc1 {[%clk 0:02:27]}  c5 {[%clk 0:02:24]} 21. dxc5 {[%clk 0:02:24]}  Bxc5 {[%clk 0:02:23]} 22. Bxb5 {[%clk 0:02:22]}  g4 {[%clk 0:02:20]} 23. Ne5 {[%clk 0:02:21]}  g3 {[%clk 0:02:16]} 24. Nd7 {[%clk 0:02:16]}  Bd6 {[%clk 0:01:56]} 25. fxg3 {[%clk 0:02:08]}  Be4+ {[%clk 0:01:46]} 26. Ka1 {[%clk 0:02:08]}  Kg7 {[%clk 0:01:46]} 27. Rhd1 {[%clk 0:01:52]}  Bxg3 {[%clk 0:01:43]} 28. Nc5 {[%clk 0:01:49]}  Bf5 {[%clk 0:01:39]} 29. Ba6 {[%clk 0:01:39]}  Rc7 {[%clk 0:01:37]} 30. Bb7 {[%clk 0:01:34]}  Rb8 {[%clk 0:01:36]} 31. Bf3 {[%clk 0:01:34]}  Be5 {[%clk 0:01:32]} 32. Nb3 {[%clk 0:01:31]}  Bc2 {[%clk 0:01:17]} 33. Rd2 {[%clk 0:01:24]}  Rbc8 {[%clk 0:01:07]} 34. Nd4 {[%clk 0:01:14]}  Bh7 {[%clk 0:01:00]} 35. Rxc7 {[%clk 0:01:12]}  Rxc7 {[%clk 0:01:01]} 36. a3 {[%clk 0:01:10]}  a5 {[%clk 0:00:45]} 37. Nc6 {[%clk 0:01:06]}  Bf6 {[%clk 0:00:44]} 38. Nxa5 {[%clk 0:01:05]}  Bg5 {[%clk 0:00:24]} 39. Re2 {[%clk 0:00:56]}  Rc1+ {[%clk 0:00:24]} 40. Ka2 {[%clk 0:00:55]}  Bd3 {[%clk 0:00:24]} 41. Rd2 {[%clk 0:00:50]}  Bb1+ {[%clk 0:00:24]} 42. Kb3 {[%clk 0:00:49]}  Bxe3 {[%clk 0:00:24]} 43. Re2 {[%clk 0:00:45]}  Bd4 {[%clk 0:00:18]} 44. Rd2 {[%clk 0:00:42]}  Be3 {[%clk 0:00:13]} 45. Re2 {[%clk 0:00:41]}  Bg5 {[%clk 0:00:11]} 46. Ka4 {[%clk 0:00:38]}  Bd3 {[%clk 0:00:09]} 47. Rf2 {[%clk 0:00:37]}  Be3 {[%clk 0:00:09]} 48. Re2 {[%clk 0:00:31]}  Bxe2 {[%clk 0:00:09]} 49. Bxe2 {[%clk 0:00:31]}  Rc2 {[%clk 0:00:06]} 50. Bf3 {[%clk 0:00:31]}  f5 {[%clk 0:00:04]} 51. b4 {[%clk 0:00:29]}  e5 {[%clk 0:00:04]} 52. Kb3 {[%clk 0:00:30]}  Rf2 {[%clk 0:00:02]} 53. Nc4 {[%clk 0:00:29]}  Bd4 {[%clk 0:00:02]} 54. Nd6 {[%clk 0:00:29]}  Kf6 {[%clk 0:00:01]} 55. Bc6 {[%clk 0:00:28]} 1-0


[Site "https://www.chess.com"]

[Event "Titled Tuesday Blitz August 24 2021"]
[White "Senft, Sean"]
[Black "Ivanov, Oleg"]
[WhiteFideId "2044960"]
[BlackFideId "4103114"]
[WhiteElo "1881"]
[BlackElo "2705"]
[Result "0-1"]
[Round "08"]
[TimeControl "180+1"]
[Date "2021.08.24"]
[WhiteClock "0:00:39"]
[BlackClock "0:00:22"]

1. d4 {[%clk 0:03:00]}  c5 {[%clk 0:02:58]} 2. c3 {[%clk 0:02:58]}  cxd4 {[%clk 0:02:49]} 3. cxd4 {[%clk 0:02:58]}  d5 {[%clk 0:02:49]} 4. Nc3 {[%clk 0:02:57]}  Nf6 {[%clk 0:02:50]} 5. Bf4 {[%clk 0:02:58]}  Nc6 {[%clk 0:02:50]} 6. e3 {[%clk 0:02:58]}  a6 {[%clk 0:02:50]} 7. Bd3 {[%clk 0:02:59]}  Bg4 {[%clk 0:02:49]} 8. Nge2 {[%clk 0:02:59]}  e6 {[%clk 0:02:48]} 9. O-O {[%clk 0:02:58]}  Bd6 {[%clk 0:02:47]} 10. Bxd6 {[%clk 0:02:56]}  Qxd6 {[%clk 0:02:48]} 11. Rc1 {[%clk 0:02:56]}  Bxe2 {[%clk 0:02:39]} 12. Qxe2 {[%clk 0:02:53]}  O-O {[%clk 0:02:40]} 13. Na4 {[%clk 0:02:51]}  Nd7 {[%clk 0:02:39]} 14. a3 {[%clk 0:02:44]}  Rfc8 {[%clk 0:02:36]} 15. Rc2 {[%clk 0:02:41]}  Ne7 {[%clk 0:02:21]} 16. Rfc1 {[%clk 0:02:40]}  Rxc2 {[%clk 0:02:19]} 17. Qxc2 {[%clk 0:02:39]}  Rc8 {[%clk 0:02:07]} 18. Qd1 {[%clk 0:02:24]}  Rxc1 {[%clk 0:01:56]} 19. Qxc1 {[%clk 0:02:24]}  Qc6 {[%clk 0:01:53]} 20. Qxc6 {[%clk 0:02:14]}  Nxc6 {[%clk 0:01:54]} 21. b4 {[%clk 0:02:10]}  Kf8 {[%clk 0:01:41]} 22. Kf1 {[%clk 0:02:03]}  Ke7 {[%clk 0:01:34]} 23. Ke2 {[%clk 0:02:03]}  h6 {[%clk 0:01:33]} 24. Kd2 {[%clk 0:02:02]}  Kd6 {[%clk 0:01:33]} 25. Kc3 {[%clk 0:01:58]}  a5 {[%clk 0:01:16]} 26. Bb5 {[%clk 0:01:49]}  axb4+ {[%clk 0:01:16]} 27. axb4 {[%clk 0:01:50]}  Nf6 {[%clk 0:01:10]} 28. Nc5 {[%clk 0:01:46]}  b6 {[%clk 0:00:56]} 29. Nb7+ {[%clk 0:01:39]}  Kc7 {[%clk 0:00:49]} 30. Bxc6 {[%clk 0:01:39]}  Ne4+ {[%clk 0:00:44]} 31. Kd3 {[%clk 0:00:54]}  Kxc6 {[%clk 0:00:41]} 32. f3 {[%clk 0:00:52]}  Nf2+ {[%clk 0:00:33]} 33. Ke2 {[%clk 0:00:51]}  Kxb7 {[%clk 0:00:34]} 34. Kxf2 {[%clk 0:00:51]}  Kc6 {[%clk 0:00:33]} 35. g4 {[%clk 0:00:40]}  Kb5 {[%clk 0:00:32]} 36. g5 {[%clk 0:00:39]}  Kxb4 {[%clk 0:00:25]} 37. g6 {[%clk 0:00:38]}  fxg6 {[%clk 0:00:23]} 38. e4 {[%clk 0:00:39]}  Kc4 {[%clk 0:00:22]} 0-1


[Site "https://www.chess.com"]

[Event "Titled Tuesday Blitz August 24 2021"]
[White "Sonis, Francesco"]
[Black "Song, Michael"]
[WhiteFideId "895733"]
[BlackFideId "2613190"]
[WhiteElo "2373"]
[BlackElo "2274"]
[Result "1-0"]
[Round "08"]
[TimeControl "180+1"]
[Date "2021.08.24"]
[WhiteClock "0:01:39"]
[BlackClock "0:00:01"]

1. Nf3 {[%clk 0:03:00]}  Nf6 {[%clk 0:03:00]} 2. g3 {[%clk 0:03:01]}  g6 {[%clk 0:02:59]} 3. Bg2 {[%clk 0:03:02]}  Bg7 {[%clk 0:03:00]} 4. O-O {[%clk 0:03:02]}  O-O {[%clk 0:03:00]} 5. c4 {[%clk 0:03:03]}  c5 {[%clk 0:03:00]} 6. Nc3 {[%clk 0:03:02]}  Nc6 {[%clk 0:02:59]} 7. d4 {[%clk 0:03:03]}  cxd4 {[%clk 0:03:00]} 8. Nxd4 {[%clk 0:03:04]}  d6 {[%clk 0:03:01]} 9. Nxc6 {[%clk 0:03:03]}  bxc6 {[%clk 0:03:02]} 10. Bxc6 {[%clk 0:03:04]}  Rb8 {[%clk 0:03:03]} 11. Bg2 {[%clk 0:02:59]}  Qa5 {[%clk 0:03:02]} 12. Qe1 {[%clk 0:02:47]}  Qh5 {[%clk 0:03:01]} 13. b3 {[%clk 0:02:41]}  Bh3 {[%clk 0:02:55]} 14. Bd2 {[%clk 0:02:30]}  Ng4 {[%clk 0:02:35]} 15. f3 {[%clk 0:02:30]}  Bxg2 {[%clk 0:02:35]} 16. fxg4 {[%clk 0:02:26]}  Qh3 {[%clk 0:02:35]} 17. Rf4 {[%clk 0:02:24]}  Bc6 {[%clk 0:02:12]} 18. e4 {[%clk 0:02:15]}  Bd4+ {[%clk 0:02:12]} 19. Be3 {[%clk 0:02:15]}  e5 {[%clk 0:02:00]} 20. Bxd4 {[%clk 0:02:08]}  exf4 {[%clk 0:01:58]} 21. gxf4 {[%clk 0:02:09]}  Qxg4+ {[%clk 0:01:57]} 22. Qg3 {[%clk 0:02:09]}  Qxg3+ {[%clk 0:01:54]} 23. hxg3 {[%clk 0:02:10]}  Rfe8 {[%clk 0:01:54]} 24. Re1 {[%clk 0:02:10]}  f5 {[%clk 0:01:51]} 25. e5 {[%clk 0:02:06]}  dxe5 {[%clk 0:01:52]} 26. fxe5 {[%clk 0:02:05]}  Rb7 {[%clk 0:01:51]} 27. Bc5 {[%clk 0:01:53]}  Kf7 {[%clk 0:01:47]} 28. Bd6 {[%clk 0:01:51]}  g5 {[%clk 0:01:38]} 29. b4 {[%clk 0:01:50]}  a6 {[%clk 0:01:27]} 30. a4 {[%clk 0:01:50]}  Bf3 {[%clk 0:01:19]} 31. Kf2 {[%clk 0:01:50]}  g4 {[%clk 0:01:07]} 32. b5 {[%clk 0:01:49]}  axb5 {[%clk 0:01:06]} 33. axb5 {[%clk 0:01:50]}  h5 {[%clk 0:00:51]} 34. c5 {[%clk 0:01:50]}  Ke6 {[%clk 0:00:31]} 35. Ra1 {[%clk 0:01:45]}  Rc8 {[%clk 0:00:22]} 36. b6 {[%clk 0:01:42]}  Rxb6 {[%clk 0:00:19]} 37. cxb6 {[%clk 0:01:41]}  Rxc3 {[%clk 0:00:19]} 38. Rb1 {[%clk 0:01:41]}  Rc2+ {[%clk 0:00:18]} 39. Ke3 {[%clk 0:01:41]}  h4 {[%clk 0:00:09]} 40. gxh4 {[%clk 0:01:41]}  Rc4 {[%clk 0:00:08]} 41. b7 {[%clk 0:01:39]}  f4+ {[%clk 0:00:03]} 42. Kd3 {[%clk 0:01:39]}  Bxb7 {[%clk 0:00:01]} 43. Kxc4 {[%clk 0:01:39]}  Be4 {[%clk 0:00:01]} 44. Re1 {[%clk 0:01:39]} 1-0


[Site "https://www.chess.com"]